bitfinex/quotes_ETHUSD_20251213
["timestamp","ask_amount","ask_price","bid_price","bid_amount"]
[1765607358508,3.70164386,3088.1,3087.8,3.85489449]
[1765607365923,3.23824386,3088.1,3087.8,3.85489449]
[1765607366218,3.69894386,3088.1,3087.8,3.85489449]
[1765607367225,4.67151571,3088.1,3087.8,3.85489449]
[1765607376353,4.67151571,3088.1,3087.7,3.85491863]
[1765607380426,3.69894386,3088.1,3087.7,3.85491863]
[1765607380626,0.97257185,3088.0,3087.7,3.85491863]
[1765607397868,0.97257185,3088.0,3087.8,3.85490255]
[1765607400570,4.21092735,3088.0,3087.8,3.85490255]
[1765607400776,4.68002735,3088.0,3087.8,3.85490255]
[1765607400970,1.44167185,3088.0,3087.8,3.85490255]
[1765607402274,4.75368631,3088.2,3087.8,3.85490255]
[1765607402462,1.11,3088.2,3088.1,3.85490255]
[1765607402769,1.57255293,3088.2,3088.1,3.85490255]
[1765607402942,0.6,3088.2,3088.1,3.85490255]
[1765607407153,3.83813224,3088.2,3088.1,3.85490255]
[1765607407358,4.78273224,3088.2,3088.1,4.82737036]
[1765607407674,4.78273224,3088.2,3088.1,0.97246781]
[1765607407883,5.5847993,3088.2,3087.9,3.85490255]
[1765607408174,0.4691,3088.1,3087.8,0.97256869]
[1765607408580,0.4691,3088.1,3087.9,3.85490255]
[1765607409182,0.4755,3088.0,3087.9,3.85490255]
[1765607410080,3.71389491,3088.0,3087.9,3.8553145]
[1765607410278,4.18299491,3088.0,3087.9,3.8553145]
[1765607414898,0.4755,3088.0,3087.9,3.8553145]
[1765607415083,3.7482573,3088.1,3087.9,3.8553145]
[1765607419091,0.51,3088.1,3087.9,3.8553145]
[1765607419395,4.21735189,3088.1,3087.9,3.8553145]
[1765607422701,0.51,3088.1,3087.9,3.8553145]
[1765607422999,0.51,3088.1,3087.9,4.8278895]
[1765607423695,0.4535,3088.0,3087.9,0.972575]
[1765607424798,3.69184196,3088.0,3087.9,0.972575]
[1765607424989,4.16134196,3088.0,3087.9,0.972575]
[1765607429307,5.35779341,3088.0,3087.9,0.972575]
[1765607429599,2.22394745,3088.0,3087.8,3.8553145]
[1765607429805,1.433,3088.0,3087.8,3.8553145]
[1765607429970,0.494,3087.9,3087.8,3.8553145]
[1765607434008,0.51,3088.0,3087.8,3.8553145]
[1765607434306,3.23826281,3088.1,3087.8,3.8553145]
[1765607434508,3.64376681,3088.1,3088.0,3.8553145]
[1765607434711,4.15376681,3088.1,3088.0,3.8553145]
[1765607435994,0.915504,3088.1,3088.0,3.8553145]
[1765607439912,4.15374582,3088.1,3087.7,0.97260024]
[1765607440210,0.915504,3088.1,3088.0,3.8553145]
[1765607443017,0.915504,3088.1,3087.7,4.82791474]
[1765607443221,0.915504,3088.1,3088.0,3.85488824]
[1765607443626,4.1537411,3088.1,3088.0,3.85488824]
[1765607446733,3.6437411,3088.1,3088.0,3.85488824]
[1765607447034,4.1537411,3088.1,3088.0,3.85488824]
[1765607447541,0.915504,3088.1,3088.0,3.85488824]
[1765607447698,3.23818133,3088.2,3088.0,3.85488824]
[1765607447898,3.74818133,3088.2,3088.0,3.85488824]
[1765607451521,4.21768133,3088.2,3088.0,3.85488824]
[1765607451728,0.494,3088.1,3088.0,3.85488824]
[1765607452296,4.21768133,3088.2,3088.0,3.85488824]
[1765607452490,0.51,3088.1,3088.0,3.85488824]
[1765607456830,3.7482371,3088.1,3088.0,3.85488824]
[1765607460004,3.7482371,3088.1,3087.9,3.85476512]
[1765607463039,3.2382371,3088.1,3087.9,3.85476512]
[1765607463239,3.7482371,3088.1,3087.9,3.85476512]
[1765607465639,4.21075374,3088.2,3087.9,3.85476512]
[1765607465815,0.51,3088.1,3087.9,3.85476512]
[1765607467540,7.24031327,3088.5,3087.9,4.94957698]
[1765607467541,3.23792254,3088.4,3087.9,4.94957698]
[1765607467840,3.74792254,3088.4,3088.3,3.85476512]
[1765607468347,10.11754861,3088.5,3088.3,3.85476512]
[1765607472143,10.58264861,3088.5,3088.3,3.85476512]
[1765607472516,0.488,3088.4,3088.3,3.85476512]
[1765607473840,0.488,3088.4,3088.3,3.85368186]
[1765607477271,3.72592254,3088.4,3088.3,3.85368186]
[1765607479155,10.11756202,3088.5,3088.3,3.85368186]
[1765607481373,9.60756202,3088.5,3088.3,3.85368186]
[1765607481573,10.11756202,3088.5,3088.3,3.85368186]
[1765607483551,10.59086202,3088.5,3088.3,3.85368186]
[1765607484390,10.11756202,3088.5,3088.3,3.85368186]
[1765607488367,6.36970927,3088.5,3088.3,3.85368186]
[1765607489387,6.36970927,3088.5,3088.4,3.85368186]
[1765607490794,3.74778156,3088.6,3088.4,3.85368186]
[1765607490795,0.51,3088.6,3088.4,3.85368186]
[1765607492093,3.23761646,3088.7,3088.4,3.85368186]
[1765607492561,3.23740738,3088.9,3088.4,3.85368186]
[1765607492766,3.23740738,3088.9,3088.3,7.0916902]
[1765607492767,3.74740738,3088.9,3088.7,3.85368186]
[1765607493176,6.98486772,3088.9,3088.7,3.85368186]
[1765607493378,3.23732017,3089.0,3088.7,3.85368186]
[1765607494094,3.74732017,3089.0,3088.7,3.85368186]
[1765607494689,0.51,3089.0,3088.7,3.85368186]
[1765607494879,9.60793901,3089.1,3088.7,3.85368186]
[1765607495067,9.60790145,3089.1,3089.0,3.85368186]
[1765607496208,6.37070927,3089.1,3089.0,3.85368186]
[1765607497302,9.60789809,3089.1,3089.0,3.85368186]
[1765607503613,6.37070927,3089.1,3089.0,3.85368186]
[1765607504014,9.60789809,3089.1,3089.0,3.85368186]
[1765607505716,3.23818882,3089.1,3089.0,3.85368186]
[1765607506090,3.23818882,3089.1,3089.0,3.85200976]
[1765607512023,0.001,3089.1,3089.0,3.85200976]
[1765607521962,0.001,3089.1,3089.0,3.85200096]
[1765607522156,0.904,3089.1,3089.0,3.85200096]
[1765607523050,3.23729362,3089.0,3088.6,3.85200096]
[1765607523250,7.37758724,3089.0,3088.6,3.85200096]
[1765607523435,0.6409,3088.7,3088.6,3.85200096]
[1765607523639,1.1509,3088.7,3088.6,3.85200096]
[1765607523872,1.6035,3088.7,3088.6,3.85200096]
[1765607525762,4.84110805,3088.7,3088.6,3.85200096]
[1765607527878,1.6035,3088.7,3088.6,3.85200096]
[1765607528535,0.9604,3088.7,3088.6,3.85200096]
[1765607531339,0.51,3088.7,3088.6,3.85200096]
[1765607532469,0.9604,3088.7,3088.6,3.85200096]
[1765607534456,1.413,3088.7,3088.6,3.85200096]
[1765607537888,1.413,3088.7,3088.6,3.85322947]
[1765607538182,4.65060805,3088.7,3088.6,3.85322947]
[1765607547396,5.6229813,3088.7,3088.6,3.85322947]
[1765607551194,2.38537325,3088.7,3088.6,3.85322947]
[1765607552596,1.48237325,3088.7,3088.6,3.85322947]
[1765607553099,1.96377325,3088.7,3088.6,3.85322947]
[1765607553391,2.45357325,3088.7,3088.6,3.85322947]
[1765607559015,5.69118323,3088.7,3087.9,6.47689368]
[1765607559176,5.69118323,3088.7,3088.6,3.85322947]
[1765607559376,4.71880998,3088.7,3088.6,3.85322947]
[1765607559683,5.69118323,3088.7,3088.6,3.85322947]
[1765607561904,5.69118323,3088.7,3088.4,3.85322947]
[1765607562100,5.69118323,3088.7,3088.6,3.85322947]
[1765607562305,4.71880998,3088.7,3088.6,3.85322947]
[1765607562477,5.69118323,3088.7,3088.6,3.85322947]
[1765607570508,5.69118323,3088.7,3088.5,3.85354241]
[1765607571008,4.71880998,3088.7,3088.5,3.85354241]
[1765607571198,0.97237955,3088.6,3088.5,3.85354241]
[1765607572309,1.45377955,3088.6,3088.5,3.85354241]
[1765607572810,0.97237955,3088.6,3088.5,3.85354241]
[1765607581215,1.42857955,3088.6,3088.5,3.85354241]
[1765607582129,0.97237955,3088.6,3088.2,3.85369842]
[1765607582334,0.97237955,3088.6,3088.2,4.95729956]
[1765607584514,0.97237955,3088.6,3088.2,8.19533381]
[1765607584805,0.97237955,3088.6,3088.5,3.85369842]
[1765607585789,0.51,3088.7,3088.5,3.85369842]
[1765607590125,0.97237325,3088.6,3088.5,3.85369842]
[1765607603251,0.51,3088.7,3088.5,3.85369842]
[1765607603546,0.97237325,3088.6,3088.5,3.85369842]
[1765607603747,0.51,3088.7,3088.5,3.85369842]
[1765607603944,1.48237325,3088.7,3088.3,3.23800063]
[1765607604178,1.48237325,3088.7,3088.6,3.85313873]
[1765607604323,0.51,3088.7,3088.6,3.85313873]
[1765607604635,0.97237325,3088.7,3088.6,3.85313873]
[1765607615649,1.47147325,3088.7,3088.6,3.85313873]
[1765607615831,1.93847325,3088.7,3088.6,3.85313873]
[1765607619353,1.47147325,3088.7,3088.6,3.85313873]
[1765607620833,0.97237325,3088.7,3088.6,3.85313873]
[1765607627068,1.47147325,3088.7,3088.2,3.23813224]
[1765607627233,1.47147325,3088.7,3088.4,3.85313873]
[1765607627234,1.93847325,3088.7,3088.4,3.85313873]
[1765607627560,0.9661,3088.7,3088.4,3.85313873]
[1765607627761,0.97237325,3088.6,3088.4,3.85313873]
[1765607628666,0.4991,3088.5,3088.4,3.85313873]
[1765607628836,0.9661,3088.5,3088.4,3.85313873]
[1765607629185,0.4991,3088.5,3088.4,3.85313873]
[1765607629481,0.9661,3088.5,3088.4,3.85313873]
[1765607632186,0.4991,3088.5,3088.4,3.85313873]
[1765607635269,0.4991,3088.5,3088.4,3.85332105]
[1765607640212,0.97237325,3088.6,3088.4,3.85332105]
[1765607640394,1.46007325,3088.6,3088.4,3.85332105]
[1765607640699,0.97237325,3088.6,3088.4,3.85332105]
[1765607640917,1.46007325,3088.6,3088.4,3.85332105]
[1765607641070,0.4978,3088.5,3088.4,3.85332105]
[1765607641900,0.4978,3088.5,3088.4,3.85342565]
[1765607644303,1.46007325,3088.6,3088.4,3.85342565]
[1765607650805,0.4877,3088.6,3088.4,3.85342565]
[1765607651112,0.97237325,3088.5,3088.4,3.85342565]
[1765607666818,0.97237325,3088.5,3088.4,3.85340692]
[1765607667120,1.45347325,3088.5,3088.4,3.85340692]
[1765607667494,1.95047325,3088.5,3088.4,3.85340692]
[1765607669538,11.95047325,3088.5,3088.4,3.85340692]
[1765607678813,10.9781,3088.5,3088.4,3.85340692]
[1765607680556,10.4811,3088.5,3088.4,3.85340692]
[1765607681060,10.4811,3088.5,3088.4,4.82578017]
[1765607682155,10.9781,3088.5,3088.4,4.82578017]
[1765607684162,10.4811,3088.5,3088.4,4.82578017]
[1765607685541,10.4811,3088.5,3088.4,3.85340692]
[1765607689565,10.9781,3088.5,3088.4,3.85340692]
[1765607690033,5.17421983,3088.2,3088.1,3.23818729]
[1765607690234,5.17421983,3088.2,3088.1,8.06396746]
[1765607693369,5.17421983,3088.2,3088.1,4.82578017]
[1765607699103,5.17421983,3088.2,3088.1,4.82629174]
[1765607701903,5.17421983,3088.2,3088.1,4.8262932]
[1765607702112,5.17421983,3088.2,3088.1,8.0645303]
[1765607703001,5.17421983,3088.2,3088.1,4.8262932]
[1765607705102,1.46937325,3088.5,3088.1,3.85391995]
[1765607705302,0.4562,3088.4,3088.1,3.85391995]
[1765607705677,0.97238271,3088.3,3088.1,3.85391995]
[1765607708416,0.4739,3088.2,3088.1,3.85391995]
[1765607708705,1.42858271,3088.3,3088.1,3.85391995]
[1765607709001,0.97238271,3088.3,3088.1,3.85391995]
[1765607709905,0.97238271,3088.3,3088.1,7.09214757]
[1765607711105,0.97238271,3088.3,3088.1,3.85391995]
[1765607712817,0.97238271,3088.3,3088.0,0.97238271]
[1765607713022,0.97238271,3088.3,3088.1,3.85391995]
[1765607713610,0.97238271,3088.3,3088.1,3.5966677]
[1765607718130,0.97038271,3088.3,3088.1,3.5966677]
[1765607719301,0.51,3088.7,3088.2,0.35966677]
[1765607719603,3.23729362,3089.0,3088.5,3.85391995]
[1765607719808,0.51,3088.9,3088.8,3.85391995]
[1765607720331,1.48229131,3088.9,3088.8,3.85391995]
[1765607724607,1.46149131,3088.9,3088.8,3.85391995]
[1765607724810,1.94869131,3088.9,3088.8,3.85391995]
[1765607725236,0.97229131,3088.9,3088.8,3.85391995]
[1765607725542,0.001,3089.1,3088.8,11.33073513]
[1765607725722,0.001,3089.1,3088.8,8.44894896]
[1765607726042,0.001,3089.1,3088.8,7.47681518]
[1765607726341,0.001,3089.1,3088.9,0.511]
[1765607731149,0.001,3089.1,3089.0,3.85100076]
[1765607731734,0.001,3089.1,3089.0,4.82313454]
[1765607732851,0.001,3089.1,3089.0,9.51872592]
[1765607733843,0.001,3089.1,3089.0,5.66772516]
[1765607734147,0.001,3089.1,3089.0,8.90501878]
[1765607735849,0.001,3089.1,3089.0,12.75601954]
[1765607736347,0.001,3089.1,3089.0,8.90501878]
[1765607737049,0.001,3089.1,3089.0,12.75601954]
[1765607737250,0.001,3089.1,3089.0,8.90501878]
[1765607737848,0.001,3089.1,3089.0,4.82313454]
[1765607741931,0.001,3089.1,3089.0,8.06042816]
[1765607762076,0.9704,3089.1,3089.0,4.82313454]
[1765607763177,0.9704,3089.1,3089.0,4.82392673]
[1765607763881,0.9704,3089.1,3089.0,8.06111589]
[1765607764378,0.9704,3089.1,3089.0,4.82382227]
[1765607766178,0.4794,3089.1,3089.0,4.82382227]
[1765607766577,0.9704,3089.1,3089.0,4.82382227]
[1765607771865,0.9704,3089.1,3089.0,3.85168849]
[1765607776315,0.9704,3089.1,3089.0,7.08898211]
[1765607776461,0.4794,3089.1,3089.0,7.08898211]
[1765607776969,0.4794,3089.1,3089.0,3.85168849]
[1765607778592,0.9704,3089.1,3089.0,3.85168849]
[1765607781996,0.4794,3089.1,3089.0,7.08898211]
[1765607782901,0.001,3089.1,3089.0,3.85168849]
[1765607787606,0.4925,3089.1,3089.0,3.85168849]
[1765607787902,0.4925,3089.1,3088.9,3.23739079]
[1765607788286,0.4925,3089.1,3088.8,7.0891572]
[1765607788775,0.9883,3089.1,3088.8,7.0891572]
[1765607792812,0.4925,3089.1,3088.8,7.0891572]
[1765607793013,0.001,3089.1,3088.8,7.0891572]
[1765607795314,0.001,3089.1,3088.9,3.85175534]
[1765607800788,0.4968,3089.1,3088.9,3.85175534]
[1765607803118,0.4915,3089.0,3088.9,3.85175534]
[1765607804702,0.9873,3089.0,3088.9,3.85175534]
[1765607807425,0.9873,3089.0,3088.8,7.08925104]
[1765607807625,0.4915,3089.0,3088.8,7.08925104]
[1765607808031,0.001,3089.1,3088.8,7.08925104]
[1765607808334,0.4968,3089.1,3088.8,3.85175534]
[1765607813432,0.4915,3088.9,3088.8,3.85175534]
[1765607813631,0.4915,3088.9,3088.7,3.85175534]
[1765607813938,0.9873,3088.9,3088.7,3.85175534]
[1765607821231,0.4768,3088.8,3088.7,3.85175534]
[1765607821534,0.9694,3088.8,3088.7,3.85175534]
[1765607821735,0.4768,3088.8,3088.7,3.85175534]
[1765607821935,0.4926,3089.0,3088.7,3.85175534]
[1765607823616,0.001,3089.1,3088.9,3.85175534]
[1765607824032,0.001,3089.1,3088.8,3.85190068]
[1765607828241,0.001,3089.1,3088.7,3.85211311]
[1765607829747,0.4936,3089.1,3088.7,3.85211311]
[1765607831848,0.4936,3089.1,3088.7,7.08967245]
[1765607832144,0.4936,3089.1,3088.8,0.97219364]
[1765607846061,0.4936,3089.1,3088.7,7.08967245]
[1765607846424,0.4936,3089.1,3088.7,8.06186609]
[1765607850647,0.4936,3089.1,3088.7,7.08967245]
[1765607850952,1.46579364,3089.1,3088.7,7.08967245]
[1765607857468,0.4516,3089.0,3088.7,7.08967245]
[1765607860461,0.4516,3089.0,3088.6,3.23771287]
[1765607860663,0.4516,3089.0,3088.7,0.97219364]
[1765607862566,0.4516,3089.0,3088.6,3.23771287]
[1765607862867,0.4516,3089.0,3088.6,4.20990651]
[1765607863032,0.97319364,3089.1,3088.6,7.44761938]
[1765607863235,1.42479364,3089.1,3088.6,7.44761938]
[1765607863536,0.97319364,3089.1,3088.6,8.62861267]
[1765607864068,1.42479364,3089.1,3088.6,8.62861267]
[1765607871374,1.42479364,3089.1,3088.6,7.44761938]
[1765607871873,0.97319364,3089.1,3088.6,7.44761938]
[1765607872172,1.42479364,3089.1,3088.6,7.44761938]
[1765607872471,1.42479364,3089.1,3088.6,4.20990651]
[1765607872888,1.42479364,3089.1,3088.6,7.44761938]
[1765607873676,0.97319364,3089.1,3088.6,7.44761938]
[1765607873877,0.4516,3089.0,3088.6,7.44761938]
[1765607874172,0.4516,3089.0,3088.6,4.20990651]
[1765607877245,0.4516,3089.0,3088.6,7.44761938]
[1765607879864,0.4516,3089.0,3088.6,6.47542574]
[1765607880070,1.42379364,3089.0,3088.6,6.47542574]
[1765607883981,1.42379364,3089.0,3088.8,3.85226704]
[1765607884682,0.4917,3088.9,3088.8,3.85226704]
[1765607884882,0.986,3088.9,3088.8,3.85226704]
[1765607886285,0.97219364,3089.0,3088.8,3.85226704]
[1765607886488,0.4943,3088.9,3088.8,3.85226704]
[1765607887088,0.4917,3089.0,3088.8,3.85226704]
[1765607887692,0.4917,3089.0,3088.8,7.08975855]
[1765607888991,0.4917,3089.0,3088.8,3.85226704]
[1765607892994,0.4917,3089.0,3088.7,3.23756111]
[1765607893399,0.4917,3089.0,3088.7,4.20975475]
[1765607905315,0.97219364,3089.0,3088.7,4.20975475]
[1765607907195,1.44099364,3089.0,3088.7,4.20975475]
[1765607919507,0.4688,3089.0,3088.7,4.20975475]
[1765607930242,0.97319364,3089.1,3088.7,4.20975475]
[1765607930450,0.001,3089.1,3089.0,3.85257224]
[1765607931211,0.001,3089.1,3089.0,4.32237224]
[1765607934743,0.001,3089.1,3089.0,7.55966586]
[1765607937533,0.4905,3089.1,3089.0,7.55966586]
[1765607937925,0.001,3089.1,3089.0,7.55966586]
[1765607940878,0.001,3089.1,3089.0,8.63937221]
[1765607942760,0.001,3089.1,3089.0,12.49194445]
[1765607943059,0.001,3089.1,3089.0,13.07241974]
[1765607943352,0.001,3089.1,3089.0,43.07241974]
[1765607946031,0.001,3089.1,3089.0,43.06710536]
[1765607948462,0.001,3089.1,3089.0,13.06710536]
[1765607948766,0.001,3089.1,3089.0,43.16155252]
[1765607950561,0.001,3089.1,3089.0,13.16155252]
[1765607950747,0.001,3089.1,3089.0,43.16155252]
[1765607954965,0.001,3089.1,3089.0,13.16155252]
[1765607955158,0.001,3089.1,3089.0,43.16155252]
[1765607957269,0.001,3089.1,3089.0,47.01110595]
[1765607957777,0.001,3089.1,3089.0,43.16082928]
[1765607959141,0.001,3089.1,3089.0,13.16082928]
[1765607959452,0.001,3089.1,3089.0,43.16082928]
[1765607963636,0.001,3089.1,3089.0,13.16082928]
[1765607963841,0.001,3089.1,3089.0,43.16082928]
[1765607966869,0.001,3089.1,3089.0,13.16082928]
[1765607967170,0.001,3089.1,3089.0,43.16082928]
[1765607968971,0.001,3089.1,3089.0,13.16082928]
[1765607969178,0.001,3089.1,3089.0,43.16082928]
[1765607972568,0.001,3089.1,3089.0,13.16082928]
[1765607972774,0.001,3089.1,3089.0,43.16082928]
[1765607980178,0.001,3089.1,3089.0,13.16082928]
[1765607980373,0.001,3089.1,3089.0,43.16082928]
[1765607981182,0.001,3089.1,3089.0,13.16082928]
[1765607981374,0.001,3089.1,3089.0,43.16082928]
[1765607982286,0.001,3089.1,3089.0,13.16082928]
[1765607982585,0.001,3089.1,3089.0,43.16082928]
[1765607989793,0.001,3089.1,3089.0,43.1610922]
[1765607991897,0.001,3089.4,3089.0,43.1610922]
[1765607992060,0.001,3089.4,3089.3,34.52460734]
[1765607992397,0.4891,3090.2,3089.5,30.0]
[1765607992702,0.4891,3090.0,3089.9,30.58047529]
[1765607993006,0.4891,3090.0,3089.9,31.09047529]
[1765607993292,0.9772,3090.0,3089.9,34.32682598]
[1765607993475,0.9772,3090.0,3089.9,34.81592598]
[1765607994762,0.9772,3090.0,3089.9,35.89563233]
[1765608005705,0.9772,3090.0,3089.9,34.81592598]
[1765608005884,0.9772,3090.0,3089.9,38.66448279]
[1765608007208,0.9772,3090.0,3089.9,38.15448279]
[1765608007385,0.9772,3090.0,3089.9,38.66448279]
[1765608007705,0.9772,3090.0,3089.9,38.15448279]
[1765608007880,0.9772,3090.0,3089.9,38.66448279]
[1765608009011,0.001,3090.0,3089.9,38.66448279]
[1765608009801,0.4857,3090.0,3089.9,38.66448279]
[1765608010411,0.9582,3090.0,3089.9,38.66448279]
[1765608019935,0.47370865,3090.0,3089.9,38.66448279]
[1765608021540,0.00120865,3090.0,3089.9,38.66448279]
[1765608022236,0.4634,3090.2,3089.9,11.90083348]
[1765608022637,0.4634,3090.2,3090.0,30.0]
[1765608023436,0.4634,3090.2,3090.0,34.31177053]
[1765608023638,0.4975,3090.1,3090.0,34.31177053]
[1765608024141,0.001,3090.1,3090.0,37.54801648]
[1765608025128,0.001,3090.1,3090.0,37.84481648]
[1765608025717,0.001,3090.1,3090.0,7.84481648]
[1765608025938,0.001,3090.1,3090.0,37.84481648]
[1765608026732,0.001,3090.1,3090.0,7.84481648]
[1765608026935,0.001,3090.1,3090.0,37.84481648]
[1765608027736,0.001,3090.1,3090.0,38.42529177]
[1765608028714,0.001,3090.1,3090.0,38.72209177]
[1765608029244,0.001,3090.1,3090.0,38.42529177]
[1765608034014,0.001,3090.1,3090.0,8.42529177]
[1765608034222,0.001,3090.1,3090.0,38.42529177]
[1765608035242,0.001,3090.1,3090.0,38.72209177]
[1765608036337,0.001,3090.1,3090.0,38.42529177]
[1765608038151,0.001,3090.1,3090.0,8.42529177]
[1765608038327,0.001,3090.1,3090.0,38.42529177]
[1765608038934,0.001,3090.1,3090.0,38.72209177]
[1765608043460,0.001,3090.1,3090.0,42.5704623]
[1765608044839,0.001,3090.1,3090.0,38.72209177]
[1765608045340,0.001,3090.1,3090.0,8.72209177]
[1765608045542,0.001,3090.1,3090.0,38.72209177]
[1765608046359,0.001,3090.1,3090.0,42.5704623]
[1765608048362,0.001,3090.1,3090.0,38.72209177]
[1765608048862,0.001,3090.1,3090.0,38.42529177]
[1765608050267,0.001,3090.1,3090.0,42.2736623]
[1765608050476,0.001,3090.1,3090.0,42.5704623]
[1765608052449,0.001,3090.1,3090.0,38.72209177]
[1765608053755,0.001,3090.1,3090.0,8.72209177]
[1765608053958,0.001,3090.1,3090.0,38.72209177]
[1765608054284,0.001,3090.1,3090.0,42.5704623]
[1765608054441,0.001,3090.1,3090.0,46.41756988]
[1765608055869,0.001,3090.1,3090.0,16.41756988]
[1765608056051,0.001,3090.1,3090.0,46.41756988]
[1765608057953,0.001,3090.1,3090.0,46.12076988]
[1765608058737,0.001,3090.1,3090.0,46.41756988]
[1765608059780,0.001,3090.1,3090.0,46.12076988]
[1765608061177,0.001,3090.1,3090.0,46.41756988]
[1765608063662,0.001,3090.1,3090.0,46.12076988]
[1765608067893,0.001,3090.1,3090.0,38.42408655]
[1765608068855,0.001,3091.6,3090.0,38.42408655]
[1765608068856,0.4564,3091.3,3090.6,30.0]
[1765608069186,0.1867,3090.9,3090.7,31.08947529]
[1765608069627,2.5768,3090.8,3090.7,31.08947529]
[1765608069967,2.5768,3090.8,3090.7,32.06080645]
[1765608070591,2.5768,3090.8,3090.7,35.29631944]
[1765608075560,2.1214,3090.8,3090.7,35.29631944]
[1765608078491,1.625,3090.8,3090.7,35.59311944]
[1765608079170,1.625,3090.8,3090.7,35.88991944]
[1765608085143,0.001,3091.3,3090.7,45.29965841]
[1765608085275,0.001,3091.3,3091.2,38.27480591]
[1765608085475,0.001,3091.3,3091.2,38.78380591]
[1765608085699,0.9634,3091.3,3091.2,38.78380591]
[1765608085906,0.9634,3091.3,3091.2,39.25150591]
[1765608086498,0.4967,3091.3,3091.2,39.25150591]
[1765608086684,0.4967,3091.3,3091.2,39.24643567]
[1765608086883,0.9634,3091.3,3091.2,39.24643567]
[1765608087086,0.9634,3091.3,3091.2,42.48142531]
[1765608089507,0.001,3091.3,3091.2,42.48142531]
[1765608089810,0.4967,3091.3,3091.2,42.48142531]
[1765608090311,0.9634,3091.3,3091.2,42.48142531]
[1765608091783,0.9634,3091.3,3091.2,38.63679512]
[1765608092512,0.9634,3091.3,3091.2,34.79216493]
[1765608092810,0.9634,3091.3,3091.2,38.63679512]
[1765608093200,0.9634,3091.3,3091.2,38.12779512]
[1765608093407,0.9634,3091.3,3091.2,36.41797112]
[1765608094320,0.9634,3091.3,3091.2,34.28316493]
[1765608094487,0.9634,3091.3,3091.2,38.63679512]
[1765608095718,0.9634,3091.3,3091.2,34.79216493]
[1765608095892,0.9634,3091.3,3091.2,31.28779393]
[1765608096094,0.9634,3091.3,3091.2,3.74398964]
[1765608096902,0.9634,3091.3,3091.2,3.23498964]
[1765608097202,0.9634,3091.3,3091.2,3.74398964]
[1765608106226,0.9634,3091.3,3091.2,33.38088783]
[1765608106537,0.9634,3091.3,3091.2,32.17747183]
[1765608107443,0.9634,3091.3,3091.2,31.96622983]
[1765608109099,0.9634,3091.3,3091.2,31.64264283]
[1765608112229,0.9634,3091.3,3091.2,13.88148264]
[1765608122212,0.001,3091.3,3091.2,38.46721343]
[1765608122545,0.001,3091.3,3091.2,39.72741343]
[1765608122840,0.001,3091.3,3091.2,39.43061343]
[1765608123914,0.4696,3091.3,3091.2,22.32597243]
[1765608124247,0.9586,3091.3,3091.2,17.27215593]
[1765608124411,0.9586,3091.3,3091.2,17.00473193]
[1765608124611,0.9586,3091.3,3091.2,16.50828493]
[1765608124851,0.9586,3091.3,3091.2,11.24122993]
[1765608125449,0.9586,3091.3,3091.2,9.80845793]
[1765608126243,0.9586,3091.3,3091.2,5.28786493]
[1765608126451,0.9586,3091.3,3091.2,9.80845793]
[1765608127246,0.9586,3091.3,3091.2,5.28786493]
[1765608127420,0.9586,3091.3,3091.2,10.59563993]
[1765608128322,0.9586,3091.3,3091.2,10.59405793]
[1765608128657,0.9586,3091.3,3091.2,9.80687593]
[1765608128831,0.9586,3091.3,3091.2,5.28786493]
[1765608133052,0.001,3091.9,3091.6,0.2968]
[1765608133349,10.24,3093.7,3092.5,30.0]
[1765608133350,0.489,3093.7,3092.5,30.0]
[1765608133552,0.489,3093.4,3093.3,15.37654229]
[1765608133741,0.489,3093.4,3093.3,22.25019285]
[1765608134048,0.675,3093.8,3093.4,0.58047529]
[1765608134349,0.675,3093.8,3093.6,9.611795]
[1765608134559,0.186,3093.8,3093.7,0.511]
[1765608135050,1.1436,3093.8,3093.7,0.511]
[1765608135352,1.1436,3093.8,3093.7,3.74337547]
[1765608136323,1.1436,3093.8,3093.7,7.59003043]
[1765608137252,1.1436,3093.8,3093.7,3.74337547]
[1765608139133,1.1436,3093.8,3093.7,3.23237547]
[1765608139337,1.1436,3093.8,3093.7,3.74337547]
[1765608141256,1.1436,3093.8,3093.5,3.81296552]
[1765608141459,0.4686,3093.6,3092.9,3.23316505]
[1765608141757,0.489,3093.7,3092.9,3.23316505]
[1765608141758,0.4686,3093.2,3093.1,4.20368935]
[1765608141960,0.4686,3093.2,3093.1,3.23300248]
[1765608142262,0.9576,3093.2,3093.1,3.23300248]
[1765608142438,0.9576,3093.2,3093.1,3.74400248]
[1765608142825,0.9576,3093.2,3093.1,3.23300248]
[1765608147537,0.9576,3093.2,3093.0,3.8135823]
[1765608147736,0.4662,3093.1,3093.0,3.8135823]
[1765608147967,0.9268,3093.1,3093.0,3.8135823]
[1765608152369,0.4606,3093.1,3093.0,3.8135823]
[1765608154265,0.9268,3093.1,3093.0,3.8135823]
[1765608155675,0.9268,3093.1,3093.0,4.3235823]
[1765608157343,0.9268,3093.1,3093.0,3.74310701]
[1765608158942,0.9268,3093.1,3093.0,3.23310701]
[1765608159137,0.9268,3093.1,3092.9,3.2331728]
[1765608159342,3.23260151,3093.5,3092.9,3.7431728]
[1765608159343,0.9268,3093.0,3092.9,3.7431728]
[1765608160287,0.9268,3093.0,3092.8,3.2332512]
[1765608160453,0.5872,3092.9,3092.8,3.81372649]
[1765608160653,1.0478,3092.9,3092.8,3.81372649]
[1765608161953,1.0478,3092.9,3092.7,3.23339186]
[1765608162155,0.4662,3092.8,3092.7,3.23339186]
[1765608162486,0.9268,3092.8,3092.6,0.51]
[1765608162660,0.4606,3092.7,3092.6,3.74352518]
[1765608162861,0.9268,3092.7,3092.6,3.74352518]
[1765608163263,0.9268,3092.7,3092.6,3.23352518]
[1765608163486,0.9268,3092.7,3092.5,1.09047529]
[1765608163674,0.9268,3092.6,3092.5,4.32410503]
[1765608170393,0.9268,3092.6,3092.5,3.81410503]
[1765608170584,0.9268,3092.6,3092.5,3.23362974]
[1765608171562,0.9268,3092.6,3092.5,3.81410503]
[1765608174194,0.9268,3092.6,3092.5,0.58047529]
[1765608174560,0.9268,3092.6,3092.4,0.51]
[1765608174788,3.35422251,3092.9,3092.4,0.51]
[1765608174789,0.9299,3092.5,3092.4,0.51]
[1765608174973,0.9299,3092.5,3092.4,3.74373431]
[1765608176021,0.9299,3092.5,3092.2,0.58047529]